Cogmind - Beta 10.2 *** ADVENTURER MODE // 2021.02.15 @ 19:44:45 Player: DUMBBITCHINDYSTOPIA Result: Destroyed by D-53 Grenadier with Mini Grenade Launcher Performance ------------- Evolutions (0) 0 Regions Visited (2) 400 Robots Destroyed (23) 115 Value Destroyed (553) 553 Prototype IDs (5) 100 Alien Tech Used (0) 0 Bonus (0) 0 TOTAL SCORE: 1168 Bonus ------- None Cogmind --------- Core Integrity 0/250 Matter 250/300 Energy 100/100 System Corruption 0% Temperature Cool (155) Movement Core (150) Ox2 Location -10/Mines Parts ------- > --- POWER (1) -------- (None) > --- PROPULSION (2) --- (None) > --- UTILITY (2) ------ Medium Storage Unit > --- WEAPON (2) ------- (None) > --- INVENTORY (8) ---- Ion Engine Aluminum Leg Aluminum Leg Peak State ------------ > --- POWER ------------ Ion Engine > --- PROPULSION ------- Aluminum Leg Aluminum Leg > --- UTILITY ---------- Heat Sink Medium Storage Unit > --- WEAPON ----------- EM Pulse Gun Particle Cannon > --- INVENTORY -------- Ion Engine Ion Engine Aluminum Leg Aluminum Leg Particle Cannon Particle Cannon Light Assault Rifle Grenade Launcher [Rating: 9] Favorites ----------- Power Ion Engine Engine Ion Engine Propulsion Aluminum Leg Leg Aluminum Leg Utility Heat Sink Device Heat Sink Storage Medium Storage Unit Processor Targeting Computer Weapon Particle Cannon Energy Gun EM Pulse Gun Energy Cannon Particle Cannon Ballistic Gun Light Assault Rifle Launcher Grenade Launcher Build | -11 -10 -10 ------- Run | Scr Mat Min Slots Evolved . | . . . Power . | . . . Propulsion . | . . . Utility . | . . . Weapon . | . . . Parts Attached 29 | 7 19 3 Power 2 | 1 1 . Engine 2 | 1 1 . Core . | . . . Reactor . | . . . Propulsion 10 | 2 8 . Treads . | . . . Leg 10 | 2 8 . Wheel . | . . . Hover . | . . . Flight . | . . . Utility 4 | 1 3 . Device 1 | . 1 . Storage 2 | 1 1 . Processor 1 | . 1 . Hackware . | . . . Protection . | . . . Artifact . | . . . Weapon 13 | 3 7 3 Energy Gun 3 | 2 . 1 Energy Cannon 7 | . 6 1 Ballistic Gun 1 | 1 . . Ballistic Cannon . | . . . Launcher 2 | . 1 1 Special Weapon . | . . . Impact Weapon . | . . . Slashing Weapon . | . . . Piercing Weapon . | . . . Special Melee Weapon . | . . . Unidentified Prototypes . | . . . Parts Lost 8 | . . 8 Power 1 | . . 1 Propulsion 2 | . . 2 Utility 1 | . . 1 Weapon 4 | . . 4 Highest Loss Streak 8 | . . 8 Average Slot Usage (%) 98 | . 98 93 Engine 14 | . 14 14 Leg 27 | . 27 25 Device 10 | . 10 12 Storage 14 | . 14 14 Processor 2 | . 2 . Energy Gun 6 | . 6 1 Energy Cannon 20 | . 20 20 Naked Turns . | . . . Heaviest Build 22 | 12 22 22 Greatest Support 20 | 20 20 20 Greatest Overweight (x) 5 | 3 5 4 Average Overweight (x) . | . . 1 Largest Inventory Capacity 8 | 6 8 8 Average Capacity 7 | 5 7 8 Most Carried 8 | 2 8 5 Average Carried 5 | 1 5 4 Final Capacity 8 | 6 8 8 Final Carried 5 | 2 5 3 Class Distribution -------------------- 100% | Mutant Dominant Class ---------------- Mutant | -10/Materials Mutant | -10/Mines Resources | -11 -10 -10 ----------- Run | Scr Mat Min Matter Collected 486 | 276 210 . Remotely . | . . . Salvage Created 1004 | 138 694 172 Parts 43 | 8 33 2 Haulers Intercepted 1 | . 1 . Recyclers Shooed 1 | . 1 . Parts Field Recycled . | . . . Retrieved Matter . | . . . Parts Self-Destructed . | . . . Prevented . | . . . Kills | -11 -10 -10 ------- Run | Scr Mat Min Combat Hostiles Destroyed 30 | . 13 17 Guns 3 | . 2 1 Cannons 12 | . 8 4 AOE 15 | . 3 12 Classes Destroyed 7 | 2 4 1 Tunneler 2 | 2 . . Hauler 1 | . 1 . Recycler 3 | 1 2 . Watcher 2 | . 2 . Swarmer 3 | . 3 . Grunt 12 | . 10 2 Assembled 15 | . . 15 Best Kill Streak 15 | 3 6 15 Combat Bots Only 15 | . 4 15 Max Kills in Single Turn 4 | 1 2 4 Gunslinging . | . . . Exploded 4 | . 2 4 Melee . | . . . Uniques/NPCs Destroyed . | . . . Combat | -11 -10 -10 -------- Run | Scr Mat Min Damage Taken 1156 | . 443 713 Core 264 | . 88 176 Absorbed by Shields . | . . . Core Remaining (%) 100 | 100 . . Volleys Fired 67 | 6 39 22 Largest 2 | 2 2 2 Hottest 136 | 60 136 136 Shots Fired 120 | 12 78 30 Gun 40 | 12 25 3 Cannon 72 | . 51 21 Launcher 8 | . 2 6 Special . | . . . Kinetic 6 | 6 . . Thermal 75 | . 51 24 Explosive 8 | . 2 6 Electromagnetic 31 | 6 25 . Robot Hit Streak 19 | 10 19 16 Robot Miss Streak 2 | . 2 2 Penetration Max . | . . . Secondary Targets . | . . . Shots Hit Robots 90 | 10 59 21 Core Hits 66 | 6 25 35 Critical Hits . | . . . Critical Kills . | . . . Critical Parts Destroyed . | . . . Melee Attacks . | . . . Impact . | . . . Slashing . | . . . Piercing . | . . . Sneak Attacks . | . . . Combat Hostiles . | . . . Follow-up Attacks . | . . . Damage Inflicted 2368 | 114 1208 1046 Guns 427 | 114 288 25 Cannons 999 | . 631 368 Explosions 942 | . 289 653 Melee . | . . . Ramming . | . . . Kinetic 35 | 35 . . Thermal 1075 | . 682 393 Explosive 891 | . 238 653 Electromagnetic 367 | 79 288 . Impact . | . . . Slashing . | . . . Piercing . | . . . Highest Corruption . | . . . Average Corruption . | . . . Corruption Purged . | . . . Overload Shots . | . . . Overflow Damage 34 | . 32 2 Projectiles 11 | . 9 2 Explosions 23 | . 23 . Melee . | . . . Knockbacks . | . . . Impact . | . . . Kinetic . | . . . Secondary . | . . . Self-Inflicted Damage 9 | . . 9 Shots 1 | . . 1 Rammed . | . . . Targets Rammed . | . . . Kicked . | . . . Crushed . | . . . Highest Temperature 376 | 40 376 261 Average Temperature 99 | 17 100 117 Received Heat Transfer 404 | . 288 116 Effects 1 | . 1 . Shutdowns 1 | . 1 . Siege Activations . | . . . Robots Corrupted . | . . . Combat Hostiles . | . . . Parts Fried . | . . . Impact Corruptions . | . . . Robots Melted . | . . . Combat Hostiles . | . . . Parts Melted . | . . . Heat Transferred 1913 | . 1173 740 Parts Sabotaged . | . . . Parts Stolen . | . . . Parts Stripped . | . . . Power Chain Reactions 2 | . 2 . Missiles Intercepted . | . . . Alert | -11 -10 -10 ------- Run | Scr Mat Min Peak Influence 196 | 15 196 95 Initial 8 | . 8 . Average 71 | 3 77 56 Maximum Alert Level . | . . . Low Security (%) 100 | 100 100 100 Level 1 . | . . . Level 2 . | . . . Level 3 . | . . . Level 4 . | . . . Level 5 . | . . . High Security . | . . . Max Security . | . . . Squads Dispatched 2 | . 2 . Investigation 2 | . 2 . Extermination . | . . . Reinforcement . | . . . Assault . | . . . Garrison . | . . . Intercept . | . . . Construction Impeded . | . . . Haulers Reinforced . | . . . Stealth | -11 -10 -10 --------- Run | Scr Mat Min Distress Signals 1 | . 1 . Communications Jammed . | . . . Distress Signals . | . . . Times Spotted 43 | . 22 21 Peak Tracking Total 13 | . 6 13 Tactical Retreats 5 | . 5 . Traps | -11 -10 -10 ------- Run | Scr Mat Min Traps Triggered 2 | . 2 . Indirectly . | . . . Trap Hack Attempts . | . . . Triggered . | . . . Disarmed . | . . . Reprogrammed . | . . . Reused . | . . . Traps Extracted . | . . . Installed . | . . . Triggered . | . . . Machines | -11 -10 -10 ---------- Run | Scr Mat Min Machines Disabled 1 | . 1 . Max in Single Turn 1 | . 1 . Machines Sabotaged . | . . . Garrisons Compromised . | . . . Overloaded Fab Kills . | . . . Fab Network Shutdowns . | . . . Hacking | -11 -10 -10 --------- Run | Scr Mat Min Machines Accessed 7 | . 7 . Terminals 6 | . 6 . Fabricators . | . . . Repair Stations 1 | . 1 . Recycling Units . | . . . Scanalyzers . | . . . Garrison Access . | . . . Total Hacks 22 | . 22 . Successful 18 | . 18 . Failed 4 | . 4 . Catastrophic 1 | . 1 . Database Lockouts . | . . . Manual 6 | . 6 . Terminals 20 | . 20 . Fabricators . | . . . Repair Stations 2 | . 2 . Recycling Units . | . . . Scanalyzers . | . . . Garrison Access . | . . . Terminal Hacks 14 | . 14 . Robot Analysis 6 | . 6 . Prototype ID Bank 3 | . 3 . Terminal Index 1 | . 1 . Unreport Threat 1 | . 1 . Dispatch Records 1 | . 1 . Investigation Status 1 | . 1 . Hauler Manifests 1 | . 1 . Fabricator Hacks . | . . . Repair Station Hacks 2 | . 2 . Scan Component 1 | . 1 . Repair 1 | . 1 . Recycling Unit Hacks . | . . . Scanalyzer . | . . . Garrison Access Hacks . | . . . Unauthorized Hacks 2 | . 2 . Terminals 2 | . 2 . Track 1 | . 1 . Botnet 1 | . 1 . Fabricators . | . . . Repair Stations . | . . . Recycling Units . | . . . Scanalyzers . | . . . Garrison Access . | . . . Data Cores Recovered . | . . . Used . | . . . Hacking Detections 6 | . 6 . Full Trace Events 1 | . 1 . Feedback Events . | . . . Feedback Blocked . | . . . Robot Schematics Acquired . | . . . Robots Built . | . . . Matter . | . . . Time . | . . . Total Robot Build Rating . | . . . Part Schematics Acquired . | . . . Parts Built . | . . . Matter . | . . . Time . | . . . Total Part Build Rating . | . . . Parts Repaired 1 | . 1 . Time 32 | . 32 . Parts Recycled . | . . . Recycled Matter . | . . . Retrieved Matter . | . . . Retrieved Components . | . . . Parts Scanalyzed . | . . . Part Schematics Acquired . | . . . Parts Damaged . | . . . Bothacking | -11 -10 -10 ------------ Run | Scr Mat Min Used RIF Installer . | . . . Robots Hacked . | . . . Non-combat . | . . . Combat . | . . . Robot Hacks Applied . | . . . Relay Couplers Released . | . . . Robots Rewired . | . . . Allies Hacked . | . . . Hacks Repelled . | . . . Allies | -11 -10 -10 -------- Run | Scr Mat Min Total Allies . | . . . Largest Group . | . . . Highest-Rated Group . | . . . Highest-Rated Ally . | . . . Total Orders . | . . . Ally Attacks . | . . . Total Damage . | . . . Kills . | . . . Allies Corrupted . | . . . Allies Melted . | . . . Intel | -11 -10 -10 ------- Run | Scr Mat Min Robot Analysis Total 6 | . 6 . Derelict Logs Recovered . | . . . Drone Launches . | . . . Drone Recoveries . | . . . Exploration | -11 -10 -10 ------------- Run | Scr Mat Min Turns Passed 1529 | 71 1329 129 Spaces Moved 879 | 35 806 38 Core 12 | 10 1 1 Treads . | . . . Legs 867 | 25 805 37 Wheels . | . . . Hover . | . . . Flight . | . . . Fastest Speed 50 | 50 120 150 Average Speed 138 | 120 138 152 Slowest Speed 300 | 200 300 250 Overloaded Moves . | . . . Propulsion Burnouts . | . . . Robots Hopped . | . . . Cave-ins Triggered . | . . . Exploration Rate (%) 34 | 3 84 15 Regions Visited 2 Branch Regions 1 Pre-discovered Areas . | . . . Known Exits Taken . | . . . Unknown Exits Taken 2 | 1 1 . Scrap Searched 1 | . . 1 Spaces Dug . | . . . Terrain Destroyed 44 | . 10 34 Melee . | . . . Projectile 1 | . . 1 AOE 43 | . 10 33 Terrain Rammed . | . . . Walls Destroyed . | . . . Machines Disabled . | . . . Actions | -11 -10 -10 --------- Run | Scr Mat Min Total 1074 | 49 945 80 Wait 74 | . 57 17 Move 877 | 34 805 38 Hop . | . . . Pick Up 11 | 2 9 . Fast Attach 12 | 6 6 . Attach 3 | . 1 2 Detach 1 | . 1 . Swap 14 | 1 12 1 Drop 15 | . 15 . Fire 67 | 6 39 22 Melee . | . . . Ram . | . . . Kick . | . . . Crush . | . . . Escape Stasis . | . . . Rewire . | . . . Trap . | . . . Miscellaneous . | . . . Route ------- -11/Scrapyard -10/Materials (discovered 5 exits: [*Mat x3] / [*Min x2]) -10/Mines History --------- Turn | Location | Event 21 | -11/Scrapyard | Discovered new exit (range 16) 72 | -11/Scrapyard | Entered Materials 136 | -10/Materials | Discovered new exit (range 9) 301 | -10/Materials | Build established: Mutant 346 | -10/Materials | Discovered new exit (range 10) 565 | -10/Materials | Discovered new exit (range 14) 677 | -10/Materials | Discovered new exit (range 12) 1216 | -10/Materials | Discovered new exit (range 14) 1283 | -10/Materials | Repaired Particle Cannon 1401 | -10/Materials | Entered Mines 1458 | -10/Mines | Assembled infested the area 1498 | -10/Mines | Core integrity fell below 50% 1526 | -10/Mines | Core integrity fell below 20% 1530 | -10/Mines | Destroyed by D-53 Grenadier with Mini Grenade Launcher Last Messages --------------- 01501_ Grenade Launcher destroyed. 01503_ as-34777 destroyed. 01506_ as-43757 destroyed. 01506_ Knocked back. 01506_ as-16829 destroyed. 01510_ The unstable cave ceiling collapses. 01510_ Med. Laser destroyed. 01511_ as-59367 destroyed. 01512_ The unstable cave ceiling collapses. 01516_ Destroyed Asb. Hover Unit. 01520_ Destroyed Asb. Heavy Rifle. 01522_ as-81485 destroyed. [Achievement: Exterminator] 01525_ Particle Cannon destroyed. 01525_ Aluminum Leg destroyed. 01525_ Heat Sink destroyed. 01527_ The unstable cave ceiling collapses. 01528_ Particle Cannon destroyed. 01528_ Aluminum Leg destroyed. 01530_ Ion Engine destroyed. Map ----- +----------------------------------------------------+ | ???????????????????????????????????????? | | ???????????????????????????????????????? | | ???????????????????????????????????????? | | ???????????????????????????????????????? | | ???????????????????????????????????????? | | ???????????????????????????????????????? | | ???????????????????????????????????????? | | ???????????????????????????????????????? | | ??????????????????? ???????????????? | | ?????????????????? ??????????????? | | ?????????????????? #??????????????? | | ??????????????????# ##?????????????? | | ??????????????????# #?????????????? | | ?????????????????## ###???????????? | | ?????????????????? #???????????? | | ?????????????????? ##??????????? | | ?##########??????? #??????????? | | ?# #???????? ##?????????? | | ?# % #???????? ##????????? | | ?# !%* ######???# ????????? | | ?# #???? ????????? | | ?# ### ####? ???????? | | ?# ## t ???????? | | ?######## #%d # ???????? | | ???????# =%d #??????????? | | ???????# @ % #??????????????? | | ???????## # # #??????????????? | | ?????????# ## * #??????????? | | ?????????## ??# #??????????? | | ??????????## !???####??????????? | | ???????????# ##????????????????? | | ???????????# ######?????????????????? | | ???????????## #??????????????????????? | | ????????????## #??????????????????????? | | ?????????????## #??????????????????????? | | ??????????????# #??????????????????????? | | ??????????????# #??????????????????????? | | ??????????????# #??????????????????????? | | ??????????????? ???????????????????????? | | ??????????????? ???????????????????????? | | ??????????????? ???????????????????????? | | ???????????????????????????????????????? | | ???????????????????????????????????????? | | ???????????????????????????????????????? | | ???????????????????????????????????????? | | ???????????????????????????????????????? | | ???????????????????????????????????????? | | ???????????????????????????????????????? | | ???????????????????????????????????????? | | | +----------------------------------------------------+ Best States ------------- Heat Dissipation 35 Energy Generation 10 Energy Capacity 250 Matter Stores 300 Matter Capacity 300 Sight Range 16 Terrain Scan Density 10 Resistance: KI 20 Resistance: TH 20 Resistance: EX 20 Resistance: EM 20 Resistance: I 20 Resistance: S 20 Resistance: P 20 Evasion (%) 40 Targeting Accuracy 5 Offensive Hacking 10 Item Schematics ----------------- None Robot Schematics ------------------ None Fabricated ------------ Nothing Alien Tech Used ----------------- None Achievements -------------- Exterminator Challenges ------------ None Game ------ Seed HoverExperimentalLog Manual? 0 Play Time 00:16:22 Cumulative 22.3 hours Start 2021.02.15 @ 19:30:02 End 2021.02.15 @ 19:44:45 Sessions 1 Manual Loads 0 Difficulty Adventurer Special Mode None Game No. 34 Rogue 3 Adventurer 31 Explorer 0 Win Type - Total 0 Types 0/0/0/0/0/0/0/0/0 Lore% 32 Gallery% 35 Achievement% 31 Wizard Run 0 Options --------- ASCII 0 Keyboard 0 Movement Arrows Keybinds 0 Fullscreen 1 Font 16/SmallcapsGlow Map View 75x55 Tactical HUD 1 Map Filters NONE Filters NONE Steam 0 RUN: 50d1fe89-c299-47aa-9a79-0df6ffeb9087